fUSD/lending_fUSD_20250123
["ID","MTS","AMOUNT","RATE_DAILY","PERIOD"]
[350106414,1737629443475,-500.0,0.00017533,2]
[350106416,1737629443485,-500.0,0.00017533,2]
[350106418,1737629443494,-584.61,0.00017533,2]
[350106420,1737629443503,-500.0,0.00017533,2]
[350106422,1737629443512,-547.46,0.00017533,2]
[350106424,1737629443521,-500.0,0.00017533,2]
[350106426,1737629443531,-500.0,0.00017533,2]
[350106428,1737629443540,-500.0,0.00017533,2]
[350106430,1737629443549,-563.15,0.00017533,2]
[350106431,1737629443557,-500.0,0.00017534,2]
[350106432,1737629443566,-500.0,0.00017534,2]
[350106433,1737629443574,-500.0,0.00017534,2]
[350106434,1737629443583,-500.0,0.00017534,2]
[350106435,1737629443592,-500.0,0.00017534,2]
[350106436,1737629443601,-500.0,0.00017534,2]
[350106437,1737629443610,-500.0,0.00017534,2]
[350106438,1737629443620,-500.0,0.00017534,2]
[350106439,1737629443629,-500.0,0.00017534,2]
[350106440,1737629443638,-500.0,0.00017534,2]
[350106442,1737629443647,-500.0,0.00017534,2]
[350106444,1737629443656,-676.19,0.00017534,2]
[350106446,1737629443665,-500.0,0.00017534,2]
[350106448,1737629443674,-629.40930528,0.00017534,2]
[350106450,1737629443684,-561.96,0.00017534,2]
[350106452,1737629443693,-500.0,0.00017534,2]
[350106454,1737629443702,-500.0,0.00017534,2]
[350106456,1737629443712,-1042.61,0.00017534,2]
[350106458,1737629443721,-500.0,0.00017534,2]
[350106461,1737629443731,-500.0,0.00017534,2]
[350106463,1737629443742,-500.0,0.00017534,2]
[350106465,1737629443751,-330.18,0.00017534,2]
[350106467,1737629443760,-500.0,0.00017534,2]
[350106468,1737629443769,-500.0,0.00017534,2]
[350106470,1737629443779,-500.0,0.00017534,2]
[350106472,1737629443788,-500.0,0.00017534,2]
[350106474,1737629443797,-300.0,0.00017534,2]
[350106476,1737629443806,-500.0,0.00017534,2]
[350106478,1737629443815,-500.0,0.00017534,2]
[350106480,1737629443825,-500.0,0.00017534,2]
[350106482,1737629443834,-500.0,0.00017534,2]
[350106484,1737629443843,-500.0,0.00017534,2]
[350106486,1737629443853,-500.0,0.00017534,2]
[350106488,1737629443862,-500.0,0.00017534,2]
[350106490,1737629443871,-471.10951708,0.00017534,2]
[350106492,1737629443880,-500.0,0.00017534,2]
[350106494,1737629443890,-677.64,0.00017534,2]
[350106496,1737629443899,-500.0,0.00017534,2]
[350106498,1737629443908,-218.73303148,0.00017534,2]
[350106500,1737629443918,-623.29,0.00017534,2]
[350106502,1737629443927,-500.0,0.00017534,2]
[350106504,1737629443937,-500.0,0.00017534,2]
[350106506,1737629443946,-500.0,0.00017534,2]
[350106508,1737629443955,-500.0,0.00017534,2]
[350106510,1737629443964,-500.0,0.00017534,2]
[350106512,1737629443976,-7384.94085242,0.00017585,2]
[350106515,1737629443991,-22615.05914758,0.00017585,2]
[350106517,1737629444007,-500.0,0.00017619,2]
[350106518,1737629444016,-36172.1816,0.00017708,2]
[350106520,1737629444026,-792.51045324,0.00017708,2]
[350106522,1737629444038,-41013.5129846,0.00017762,2]
[350106524,1737629444047,-2509.8225,0.00017793,2]
[350106526,1737629444058,-167.18582444,0.00017797,2]
[350106528,1737629444073,-500.0,0.00017804,2]
[350106530,1737629444083,-500.0,0.00017807,2]
[350106532,1737629444093,-541.17,0.00017807,2]
[350106534,1737629444105,-500.0,0.00017807,2]
[350106536,1737629444114,-500.0,0.00017807,2]
[350106538,1737629444124,-760.2,0.00017807,2]
[350106540,1737629444136,-500.0,0.00017807,2]
[350106542,1737629444146,-500.0,0.00017807,2]
[350106544,1737629444156,-500.0,0.00017807,2]
[350106546,1737629444166,-500.0,0.00017807,2]
[350106548,1737629444176,-500.0,0.00017807,2]
[350106550,1737629444186,-562.5781587,0.00017807,2]
[350106552,1737629444196,-500.0,0.00017807,2]
[350106554,1737629444205,-500.0,0.00017807,2]
[350106556,1737629444214,-567.642902,0.00017807,2]
[350106558,1737629444224,-593.21,0.00017807,2]
[350106560,1737629444233,-646.95,0.00017807,2]
[350106562,1737629444243,-500.0,0.00017807,2]
[350106564,1737629444252,-470.86134,0.00017807,2]
[350106566,1737629444262,-678.15,0.00017807,2]
[350106568,1737629444271,-500.0,0.00017807,2]
[350106570,1737629444279,-500.0,0.00017807,2]
[350106572,1737629444289,-681.16,0.00017807,2]
[350106574,1737629444298,-500.0,0.00017807,2]
[350106576,1737629444307,-667.51,0.00017807,2]
[350106578,1737629444316,-640.33,0.00017807,2]
[350106580,1737629444325,-500.0,0.00017807,2]
[350106583,1737629444335,-595.99,0.00017807,2]
[350106585,1737629444345,-500.0,0.00017807,2]
[350106587,1737629444358,-500.0,0.00017807,2]
[350106589,1737629444367,-580.84,0.00017807,2]
[350106591,1737629444376,-557.91,0.00017807,2]
[350106593,1737629444386,-500.0,0.00017807,2]
[350106595,1737629444395,-500.0,0.00017807,2]
[350106597,1737629444404,-677.73,0.00017807,2]
[350106599,1737629444413,-641.1,0.00017807,2]
[350106600,1737629444422,-615.0,0.00017807,2]
[350106602,1737629444431,-628.14,0.00017807,2]
[350106604,1737629444440,-830.77,0.00017807,2]
[350106606,1737629444449,-500.0,0.00017807,2]
[350106608,1737629444458,-1829.8,0.00017807,2]
[350106610,1737629444467,-500.0,0.00017807,2]
[350106612,1737629444476,-500.0,0.00017807,2]
[350106614,1737629444485,-618.97,0.00017807,2]
[350106616,1737629444495,-500.0,0.00017807,2]
[350106618,1737629444503,-1187.25,0.00017807,2]
[350106620,1737629444512,-500.0,0.00017807,2]
[350106622,1737629444522,-731.49,0.00017807,2]
[350106624,1737629444531,-964.19,0.00017807,2]
[350106626,1737629444540,-767.94,0.00017807,2]
[350106628,1737629444549,-1786.41,0.00017807,2]
[350106630,1737629444558,-761.18,0.00017807,2]
[350106632,1737629444568,-500.0,0.00017807,2]
[350106634,1737629444576,-622.99,0.00017807,2]
[350106636,1737629444585,-610.15,0.00017807,2]
[350106639,1737629444596,-500.0,0.00017807,2]
[350106640,1737629444607,-775.97,0.00017807,2]
[350106642,1737629444616,-1101.74,0.00017807,2]
[350106645,1737629444626,-721.57,0.00017807,2]
[350106647,1737629444635,-958.21,0.00017807,2]
[350106648,1737629444644,-621.51,0.00017807,2]
[350106650,1737629444653,-891.31,0.00017807,2]
[350106652,1737629444663,-2397.97,0.00017807,2]
[350106655,1737629444673,-912.02,0.00017807,2]
[350106657,1737629444682,-500.0,0.00017807,2]
[350106658,1737629444691,-2073.02,0.00017807,2]
[350106660,1737629444701,-500.0,0.00017807,2]
[350106662,1737629444710,-1807.22,0.00017807,2]
[350106664,1737629444719,-548.53,0.00017807,2]
[350106666,1737629444728,-1524.16,0.00017807,2]
[350106668,1737629444738,-3879.59,0.00017807,2]
[350106670,1737629444747,-500.0,0.00017807,2]
[350106672,1737629444756,-504.83,0.00017807,2]
[350106674,1737629444765,-1263.37,0.00017807,2]
[350106676,1737629444774,-1410.96,0.00017807,2]
[350106678,1737629444783,-500.0,0.00017807,2]
[350106680,1737629444792,-500.0,0.00017807,2]
[350106682,1737629444801,-714.16,0.00017807,2]
[350106684,1737629444811,-500.0,0.00017807,2]
[350106686,1737629444820,-898.59,0.00017807,2]
[350106688,1737629444829,-746.79,0.00017807,2]
[350106690,1737629444838,-500.0,0.00017807,2]
[350106692,1737629444847,-500.0,0.00017807,2]
[350106695,1737629444859,-1546.03,0.00017807,2]
[350106696,1737629444868,-2511.44,0.00017807,2]
[350106699,1737629444878,-500.0,0.00017807,2]
[350106701,1737629444887,-500.0,0.00017807,2]
[350106703,1737629444896,-2204.89,0.00017807,2]
[350106705,1737629444905,-1906.86,0.00017807,2]
[350106707,1737629444915,-739.87,0.00017807,2]
[350106709,1737629444923,-1174.78,0.00017807,2]
[350106711,1737629444932,-1059.04,0.00017807,2]
[350106713,1737629444941,-818.1,0.00017807,2]
[350106715,1737629444950,-2835.27,0.00017807,2]
[350106716,1737629444960,-1894.35,0.00017807,2]
[350106718,1737629444972,-1208.98,0.00017807,2]
[350106720,1737629444981,-1446.68,0.00017807,2]
[350106722,1737629444991,-500.0,0.00017807,2]
[350106724,1737629445000,-500.0,0.00017807,2]
[350106726,1737629445010,-732.99,0.00017807,2]
[350106729,1737629445020,-840.57,0.00017807,2]
[350106730,1737629445029,-783.06,0.00017807,2]
[350106733,1737629445045,-623.72,0.00017807,2]
[350106734,1737629445060,-514.51,0.00017807,2]
[350106736,1737629445074,-728.5,0.00017807,2]
[350106738,1737629445088,-932.55,0.00017807,2]
[350106740,1737629445098,-500.0,0.00017807,2]
[350106742,1737629445108,-1012.86,0.00017807,2]
[350106744,1737629445118,-500.0,0.00017807,2]
[350106746,1737629445127,-1969.18,0.00017807,2]
[350106748,1737629445136,-578.78,0.00017807,2]
[350106750,1737629445147,-849.57,0.00017807,2]
[350106752,1737629445156,-933.81,0.00017807,2]
[350106754,1737629445165,-535.65,0.00017807,2]
[350106756,1737629445174,-500.0,0.00017807,2]
[350106758,1737629445183,-1235.41,0.00017807,2]
[350106773,1737629445310,-1153.99,0.00017807,2]
[350106775,1737629445320,-500.0,0.00017807,2]
[350106777,1737629445329,-1408.92,0.00017807,2]
[350106779,1737629445338,-1650.4,0.00017807,2]
[350106781,1737629445351,-500.0,0.00017807,2]
[350106783,1737629445360,-1005.35,0.00017807,2]
[350106785,1737629445369,-1447.16,0.00017807,2]
[350106787,1737629445378,-651.28,0.00017807,2]
[350106789,1737629445387,-500.0,0.00017807,2]
[350106791,1737629445398,-585.79,0.00017807,2]
[350106793,1737629445408,-867.38,0.00017807,2]
[350106795,1737629445416,-500.0,0.00017807,2]
[350106797,1737629445425,-950.49,0.00017807,2]
[350106799,1737629445434,-511.08,0.00017807,2]
[350106801,1737629445443,-691.72,0.00017807,2]
[350106803,1737629445452,-1683.06,0.00017807,2]
[350106804,1737629445461,-500.0,0.00017807,2]
[350106806,1737629445470,-500.0,0.00017807,2]
[350106808,1737629445480,-500.0,0.00017807,2]
[350106810,1737629445489,-891.24,0.00017807,2]
[350106812,1737629445498,-1102.55,0.00017807,2]
[350106814,1737629445507,-500.0,0.00017807,2]
[350106816,1737629445516,-500.0,0.00017807,2]
[350106818,1737629445526,-1417.49,0.00017807,2]
[350106820,1737629445542,-500.0,0.00017807,2]
[350106822,1737629445556,-3475.0,0.00017807,2]
[350106824,1737629445565,-500.0,0.00017807,2]
[350106827,1737629445575,-500.0,0.00017807,2]
[350106828,1737629445584,-500.0,0.00017807,2]
[350106830,1737629445593,-306.11663798,0.00017807,2]
[350106834,1737629445617,-754.74336202,0.00017807,2]
[350106836,1737629445627,-1883.48,0.00017807,2]
[350106838,1737629445635,-500.0,0.00017807,2]
[350106840,1737629445644,-27.276638,0.00017807,2]
[350106842,1737629445656,-308.20274222,0.00017807,2]
[350106844,1737629445665,-919.06044872,0.00017807,2]
[350106846,1737629445676,-310.05771303,0.00017807,2]
[350106849,1737629445692,-283.17788957,0.00016985,2]
[350106851,1737629445704,-1997.09211043,0.00016985,2]
[350106853,1737629445712,-404.44183825,0.00017807,2]
[350106855,1737629445722,-516.31620601,0.00017807,2]
[350106857,1737629445731,-516.61,0.00017807,2]
[350106859,1737629445740,-624.36455704,0.00017807,2]
[350106914,1737629446327,-587.07182953,0.00016711,2]
[350106916,1737629446336,-500.0,0.00016711,2]
[350106918,1737629446346,-500.0,0.00016711,2]
[350106919,1737629446356,-500.0,0.00016711,2]
[350106922,1737629446365,-506.3894111,0.00016711,2]
[350106924,1737629446375,-500.0,0.00016711,2]
[350106926,1737629446384,-500.0,0.00016711,2]
[350106928,1737629446394,-727.78,0.00016711,2]
[350106929,1737629446403,-500.0,0.00016985,2]
[350106932,1737629446413,-500.0,0.00016985,2]
[350106934,1737629446422,-500.0,0.00016985,2]
[350106935,1737629446431,-500.0,0.00016985,2]
[350106937,1737629446441,-500.0,0.00016985,2]
[350106939,1737629446450,-500.0,0.00016985,2]
[350106941,1737629446459,-21.33029139,0.00016985,2]
[350106944,1737629446471,-280.58957003,0.00016985,2]
[350106946,1737629446482,-198.08013858,0.00016985,2]
[350106948,1737629446491,-90.56048665,0.00016985,2]
[350106950,1737629446501,-409.43951335,0.00016985,2]
[350106952,1737629446510,-561.04270112,0.00016985,2]
[350106954,1737629446521,-2280.27,0.00017259,2]
[350106956,1737629446529,-500.0,0.00017259,2]
[350106958,1737629446538,-324.48919271,0.00017259,2]
[350106960,1737629446549,-175.51080729,0.00017259,2]
[350106962,1737629446558,-500.0,0.00017259,2]
[350106964,1737629446567,-500.0,0.00017259,2]
[350106966,1737629446575,-500.0,0.00017259,2]
[350106968,1737629446585,-500.0,0.00017259,2]
[350106970,1737629446593,-500.0,0.00017259,2]
[350106972,1737629446605,-2280.27,0.00017533,2]
[350106974,1737629446614,-500.0,0.00017533,2]
[350106976,1737629446623,-514.97824989,0.00017533,2]
[350106978,1737629446632,-500.0,0.00017533,2]
[350106980,1737629446641,-572.60596787,0.00017533,2]
[350106982,1737629446650,-500.0,0.00017533,2]
[350106984,1737629446658,-704.80544296,0.00017807,2]
[350106986,1737629446667,-500.0,0.00017807,2]
[350106988,1737629446676,-500.0,0.00017807,2]
[350106990,1737629446685,-500.0,0.00017807,2]
[350106992,1737629446694,-26.77496546,0.00017807,2]
[350106994,1737629446705,-375.81499386,0.00017807,2]
[350106996,1737629446717,-182.02004068,0.00017807,2]
[350106998,1737629446727,-500.0,0.00017807,2]
[350107000,1737629446735,-547.46,0.00017807,2]
[350107002,1737629446745,-182.23999928,0.00017807,2]
[350107004,1737629446754,-500.0,0.00017807,2]
[350107006,1737629446762,-563.15,0.00017807,2]
[350107009,1737629446771,-2280.27,0.00017807,2]
[350107011,1737629446780,-500.0,0.00017807,2]
[350107013,1737629446789,-500.0,0.00017807,2]
[350107015,1737629446799,-500.0,0.00017808,2]
[350107017,1737629446807,-500.0,0.00017808,2]
[350107019,1737629446816,-500.0,0.00017808,2]
[350107021,1737629446826,-500.0,0.00017808,2]
[350107023,1737629446835,-500.0,0.00017808,2]
[350107025,1737629446844,-500.0,0.00017808,2]
[350107027,1737629446853,-500.0,0.00017808,2]
[350107029,1737629446862,-371.31433236,0.00017808,2]
[350107031,1737629446872,-500.0,0.00017808,2]
[350107033,1737629446881,-500.0,0.00017808,2]
[350107035,1737629446890,-676.19,0.00017808,2]
[350107037,1737629446899,-200.96,0.00017808,2]
[350107039,1737629446909,-561.96,0.00017808,2]
[350107041,1737629446917,-500.0,0.00017808,2]
[350107043,1737629446926,-500.0,0.00017808,2]
[350107045,1737629446936,-1042.61,0.00017808,2]
[350107047,1737629446947,-500.0,0.00017808,2]
[350107049,1737629446956,-500.0,0.00017808,2]
[350107051,1737629446964,-500.0,0.00017808,2]
[350107053,1737629446974,-185.99157523,0.00017808,2]
[350107055,1737629446983,-500.0,0.00017808,2]
[350107057,1737629446993,-500.0,0.00017808,2]
[350107059,1737629447002,-221.8439145,0.00017808,2]
[350107061,1737629447011,-300.0,0.00017808,2]
[350107063,1737629447020,-500.0,0.00017808,2]
[350107065,1737629447029,-500.0,0.00017808,2]
[350107067,1737629447038,-496.81284004,0.00017808,2]
[350107068,1737629447047,-500.0,0.00017808,2]
[350107070,1737629447057,-299.42782375,0.00017808,2]
[350107072,1737629447068,-500.0,0.00017808,2]
[350107074,1737629447079,-500.0,0.00017808,2]
[350107077,1737629447088,-500.0,0.00017808,2]
[350107078,1737629447098,-677.64,0.00017808,2]
[350107080,1737629447110,-500.0,0.00017808,2]
[350107082,1737629447119,-623.29,0.00017808,2]
[350107084,1737629447130,-500.0,0.00017808,2]
[350107087,1737629447140,-500.0,0.00017808,2]
[350107089,1737629447150,-500.0,0.00017808,2]
[350107090,1737629447159,-500.0,0.00017808,2]
[350107092,1737629447168,-500.0,0.00017808,2]
[350107094,1737629447177,-1000.0,0.00017879,2]
[350107096,1737629447187,-463.96106882,0.000179,2]
[350107098,1737629447196,-463.9610687,0.00018038,2]
[350107100,1737629447206,-23419.04733661,0.00018049,2]
[350107104,1737629447227,-727.78,0.00016985,2]
[350107106,1737629447236,-17259.14617298,0.00018049,2]
[350107108,1737629447247,-335.31947501,0.00018049,2]
[350107110,1737629447257,-529.90616905,0.00018073,2]
[350107112,1737629447268,-262.60428418,0.00018073,2]
[350107114,1737629447278,-500.0,0.0001808,2]
[350107116,1737629447287,-500.0,0.0001808,2]
[350107118,1737629447297,-541.17,0.00018081,2]
[350107120,1737629447307,-500.0,0.00018081,2]
[350107122,1737629447316,-500.0,0.00018081,2]
[350107124,1737629447325,-760.2,0.00018081,2]
[350107126,1737629447334,-500.0,0.00018081,2]
[350107128,1737629447344,-500.0,0.00018081,2]
[350107130,1737629447353,-330.14845604,0.00018081,2]
[350107132,1737629447365,-169.85154396,0.00018081,2]
[350107134,1737629447375,-500.0,0.00018081,2]
[350107136,1737629447383,-500.0,0.00018081,2]
[350107138,1737629447393,-500.0,0.00018081,2]
[350107140,1737629447401,-567.642902,0.00018081,2]
[350107142,1737629447413,-593.21,0.00018081,2]
[350107144,1737629447423,-646.95,0.00018081,2]
[350107146,1737629447432,-500.0,0.00018081,2]
[350107148,1737629447441,-470.86134,0.00018081,2]
[350107150,1737629447450,-678.15,0.00018081,2]
[350107152,1737629447459,-500.0,0.00018081,2]
[350107154,1737629447468,-500.0,0.00018081,2]
[350107156,1737629447477,-681.16,0.00018081,2]
[350107158,1737629447486,-500.0,0.00018081,2]
[350107160,1737629447495,-667.51,0.00018081,2]
[350107162,1737629447504,-640.33,0.00018081,2]
[350107164,1737629447513,-145.85581952,0.00018081,2]
[350107166,1737629447528,-354.14418048,0.00018081,2]
[350107168,1737629447537,-595.99,0.00018081,2]
[350107170,1737629447546,-500.0,0.00018081,2]
[350107172,1737629447555,-500.0,0.00018081,2]
[350107174,1737629447565,-117.08560518,0.00018081,2]
[350107176,1737629447576,-463.75439482,0.00018081,2]
[350107178,1737629447586,-556.14560518,0.00018081,2]
[350107180,1737629447596,-1.76439482,0.00018081,2]
[350107182,1737629447607,-500.0,0.00018081,2]
[350107184,1737629447616,-500.0,0.00018081,2]
[350107186,1737629447626,-677.73,0.00018081,2]
[350107188,1737629447635,-641.1,0.00018081,2]
[350107190,1737629447645,-628.14,0.00018081,2]
[350107192,1737629447654,-1829.8,0.00018081,2]
[350107194,1737629447664,-212.33460796,0.00018081,2]
[350107196,1737629447674,-500.0,0.00018081,2]
[350107198,1737629447684,-618.97,0.00018081,2]
[350107201,1737629447693,-500.0,0.00018081,2]
[350107216,1737629447831,-1187.25,0.00018081,2]
[350107219,1737629447843,-500.0,0.00018081,2]
[350107221,1737629447854,-731.49,0.00018081,2]
[350107222,1737629447863,-964.19,0.00018081,2]
[350107225,1737629447873,-767.94,0.00018081,2]
[350107226,1737629447883,-1786.41,0.00018081,2]
[350107228,1737629447892,-761.18,0.00018081,2]
[350107230,1737629447902,-500.0,0.00018081,2]
[350107233,1737629447911,-622.99,0.00018081,2]
[350107235,1737629447921,-610.15,0.00018081,2]
[350107236,1737629447930,-500.0,0.00018081,2]
[350107238,1737629447940,-775.97,0.00018081,2]
[350107240,1737629447949,-1101.74,0.00018081,2]
[350107241,1737629447958,-495.90309901,0.00018081,2]
[350107242,1737629447970,-225.66690099,0.00018081,2]
[350107243,1737629447979,-602.04548729,0.00018081,2]
[350107244,1737629447990,-356.16451271,0.00018081,2]
[350107245,1737629447999,-621.51,0.00018081,2]
[350107246,1737629448009,-891.31,0.00018081,2]
[350107247,1737629448018,-2397.97,0.00018081,2]
[350107248,1737629448027,-912.02,0.00018081,2]
[350107250,1737629448037,-188.52622703,0.00018081,2]
[350107252,1737629448047,-2073.02,0.00018081,2]
[350107254,1737629448057,-512.5520336,0.00018081,2]
[350107256,1737629448071,-1807.22,0.00018081,2]
[350107258,1737629448081,-548.53,0.00018081,2]
[350107260,1737629448091,-1524.16,0.00018081,2]
[350107262,1737629448100,-3767.18692166,0.00018081,2]
[350107264,1737629448115,-112.40307834,0.00018081,2]
[350107266,1737629448125,-500.0,0.00018081,2]
[350107268,1737629448134,-504.83,0.00018081,2]
[350107270,1737629448145,-473.7431809,0.00018081,2]
[350107273,1737629448157,-640.64000001,0.00018081,2]
[350107275,1737629448172,-148.98681909,0.00018081,2]
[350107277,1737629448182,-196.32318091,0.00018081,2]
[350107279,1737629448194,-1214.63681909,0.00018081,2]
[350107281,1737629448203,-49.79876084,0.00018081,2]
[350107284,1737629448214,-450.20123916,0.00018081,2]
[350107286,1737629448223,-500.0,0.00018081,2]
[350107288,1737629448233,-714.16,0.00018081,2]
[350107289,1737629448242,-500.0,0.00018081,2]
[350107290,1737629448251,-898.59,0.00018081,2]
[350107291,1737629448261,-746.79,0.00018081,2]
[350107292,1737629448271,-500.0,0.00018081,2]
[350107293,1737629448281,-500.0,0.00018081,2]
[350107294,1737629448290,-1546.03,0.00018081,2]
[350107295,1737629448300,-2511.44,0.00018081,2]
[350107296,1737629448309,-500.0,0.00018081,2]
[350107297,1737629448319,-500.0,0.00018081,2]
[350107298,1737629448328,-2204.89,0.00018081,2]
[350107299,1737629448338,-1906.86,0.00018081,2]
[350107300,1737629448347,-739.87,0.00018081,2]
[350107301,1737629448357,-1174.78,0.00018081,2]
[350107302,1737629448367,-1059.04,0.00018081,2]
[350107303,1737629448376,-818.1,0.00018081,2]
[350107304,1737629448385,-2679.24876084,0.00018081,2]
[350107307,1737629448397,-156.02123916,0.00018081,2]
[350107309,1737629448407,-119.49735137,0.00018081,2]
[350107332,1737629448620,-500.0,0.00016711,2]
[350107334,1737629448630,-500.0,0.00016985,2]
[350107336,1737629448639,-500.0,0.00016985,2]
[350107338,1737629448648,-727.78,0.00017259,2]
[350107340,1737629448658,-500.0,0.00017259,2]
[350107342,1737629448667,-727.78,0.00017533,2]
[350107344,1737629448676,-500.0,0.00017533,2]
[350107346,1737629448685,-515.49071922,0.00017533,2]
[350107348,1737629448695,-727.78,0.00017807,2]
[350107350,1737629448704,-1774.85264863,0.00018081,2]
[350107351,1737629448713,-1208.98,0.00018081,2]
[350107352,1737629448723,-1446.68,0.00018081,2]
[350107353,1737629448734,-500.0,0.00018081,2]
[350107354,1737629448744,-500.0,0.00018081,2]
[350107355,1737629448754,-732.99,0.00018081,2]
[350107356,1737629448764,-840.57,0.00018081,2]
[350107357,1737629448774,-783.06,0.00018081,2]
[350107358,1737629448783,-514.51,0.00018081,2]
[350107359,1737629448792,-728.5,0.00018081,2]
[350107360,1737629448802,-932.55,0.00018081,2]
[350107361,1737629448812,-500.0,0.00018081,2]
[350107362,1737629448822,-1012.86,0.00018081,2]
[350107363,1737629448831,-209.13692096,0.00018081,2]
[350107364,1737629448841,-1969.18,0.00018081,2]
[350107365,1737629448851,-578.78,0.00018081,2]
[350107366,1737629448863,-849.57,0.00018081,2]
[350107367,1737629448873,-933.81,0.00018081,2]
[350107368,1737629448883,-535.65,0.00018081,2]
[350107369,1737629448893,-500.0,0.00018081,2]
[350107370,1737629448904,-1235.41,0.00018081,2]
[350107371,1737629448913,-1153.99,0.00018081,2]
[350107372,1737629448923,-500.0,0.00018081,2]
[350107373,1737629448934,-1408.92,0.00018081,2]
[350107374,1737629448943,-1650.4,0.00018081,2]
[350107375,1737629448954,-500.0,0.00018081,2]
[350107376,1737629448965,-1005.35,0.00018081,2]
[350107377,1737629448974,-581.81727127,0.00018081,2]
[350107378,1737629448996,-500.0,0.00017259,2]
[350107379,1737629449007,-500.0,0.00017807,2]
[350107380,1737629449016,-865.34272873,0.00018081,2]
[350107381,1737629449026,-651.28,0.00018081,2]
[350107382,1737629449035,-500.0,0.00018081,2]
[350107383,1737629449046,-32.57727127,0.00018081,2]
[350107384,1737629449058,-553.21272873,0.00018081,2]
[350107385,1737629449071,-465.38727127,0.00018081,2]
[350107386,1737629449083,-401.99272873,0.00018081,2]
[350107387,1737629449094,-126.0339524,0.00018081,2]
[350107388,1737629449107,-373.9660476,0.00018081,2]
[350107389,1737629449117,-340.35660562,0.00018081,2]
[350107390,1737629449138,-406.37179395,0.00017533,2]
[350107391,1737629449150,-610.13339438,0.00018081,2]
[350107392,1737629449160,-306.49481167,0.00018081,2]
[350107393,1737629449172,-204.58518833,0.00018081,2]
[350107394,1737629449181,-369.50480167,0.00018081,2]
[350107395,1737629449193,-322.21519833,0.00018081,2]
[350107396,1737629449203,-300.80480067,0.00018081,2]
[350107397,1737629449216,-1382.25519933,0.00018081,2]
[350107398,1737629449226,-500.0,0.00018081,2]
[350107399,1737629449237,-180.74480067,0.00018081,2]
[350107400,1737629449262,-319.25519933,0.00018081,2]
[350107401,1737629449272,-500.0,0.00018081,2]
[350107402,1737629449283,-891.24,0.00018081,2]
[350107403,1737629449293,-1102.55,0.00018081,2]
[350107404,1737629449303,-500.0,0.00018081,2]
[350107405,1737629449313,-500.0,0.00018081,2]
[350107406,1737629449323,-1417.49,0.00018081,2]
[350107407,1737629449332,-500.0,0.00018081,2]
[350107408,1737629449343,-3475.0,0.00018081,2]
[350107409,1737629449352,-570.64720533,0.00018081,2]
[350107410,1737629449363,-500.0,0.00018081,2]
[350107411,1737629449372,-500.0,0.00018081,2]
[350107412,1737629449382,-1060.86,0.00018081,2]
[350107413,1737629449391,-1883.48,0.00018081,2]
[350107414,1737629449401,-500.0,0.00018081,2]
[350107415,1737629449411,-1633.56,0.00018081,2]
[350107416,1737629449420,-516.61,0.00018081,2]
[350107417,1737629449431,-1329.17,0.00018081,2]
[350107418,1737629449442,-500.0,0.00018081,2]